fUSD/lending_fUSD_20251229
["ID","MTS","AMOUNT","RATE_DAILY","PERIOD"]
[400025662,1767035450687,-151.0,0.0003988,120]
[400025663,1767035450696,-549.971915,0.0003988,120]
[400025664,1767035450705,-549.971915,0.0003988,120]
[400025665,1767035450715,-549.971915,0.0003988,120]
[400025666,1767035450724,-549.971915,0.0003988,120]
[400025667,1767035450734,-150.0,0.00039924,7]
[400025668,1767035450743,-300.0,0.00039979,10]
[400025669,1767035450753,-1996.4615337,0.0003998,2]
[400025670,1767035450764,-11456.36469835,0.0003998,2]
[400025684,1767036632058,-5000.00292333,0.000162,5]
[400025685,1767036632068,-300.0,0.00016561,2]
[400025686,1767036632077,-1191.227,0.00016562,2]
[400025687,1767036632087,-2482.1021122,0.00016562,2]
[400025688,1767036632096,-151.42397704,0.00016894,2]
[400025689,1767036632106,-151.42397703,0.00016897,2]
[400025690,1767036632115,-500.0,0.00016899,2]
[400025691,1767036632124,-500.0,0.00016899,2]
[400025692,1767036632133,-500.0,0.00016899,2]
[400025693,1767036632142,-354.64913343,0.00016899,2]
[400025694,1767036632154,-500.0,0.00016899,2]
[400025695,1767036632163,-500.0,0.00016899,2]
[400025697,1767036632172,-500.0,0.00016899,2]
[400025699,1767036632182,-500.0,0.00016899,2]
[400025701,1767036632191,-500.0,0.00016899,2]
[400025703,1767036632201,-273.14517443,0.00016899,2]
[400025705,1767036632210,-584.92798455,0.000169,2]
[400025707,1767036632221,-412.97282465,0.000169,2]
[400025710,1767036632232,-727.65809693,0.000169,2]
[400025712,1767036632244,-717.92687088,0.000169,2]
[400025714,1767036632255,-17820.68565548,0.000169,2]
[400025717,1767036632271,-906.0,0.000169,2]
[400025755,1767036637989,-447.66174487,0.000169,2]
[400025756,1767036638045,-82949.85309775,0.000169,2]
[400025757,1767036638056,-4125.73666421,0.000169,2]
[400025758,1767036638067,-922.64,0.000169,2]
[400025759,1767036638078,-524.90771251,0.000169,2]
[400025760,1767036638098,-14333.4027118,0.000169,2]
[400025761,1767036638154,-688.30896852,0.000169,2]
[400025762,1767036638166,-865.42829817,0.000169,2]
[400025763,1767036638176,-2744.25566807,0.000169,2]
[400025764,1767036638210,-385.09999523,0.000169,2]
[400025765,1767036638221,-753.25136983,0.000169,2]
[400025766,1767036638266,-478.8554117,0.000169,2]
[400025939,1767036640111,-102445.17655268,0.000169,2]
[400025950,1767036640326,-931.76,0.000168,2]
[400026129,1767036643825,-3219.4280706,0.000168,2]
[400026130,1767036643835,-300098.02573799,0.000169,2]
[400026131,1767036643848,-178038.97269098,0.000169,2]
[400026144,1767036646156,-1356.23237086,0.000169,2]
[400026155,1767037278026,-186.82839357,0.00042788,30]
[400026156,1767037278053,-2875.2,0.00042788,30]
[400026157,1767037278081,-1028.569999,0.00042788,30]
[400026158,1767037278107,-1000.0,0.00042788,30]
[400026159,1767037278132,-1800.0,0.00042788,59]
[400026160,1767037278159,-434.8146052,0.00042788,30]
[400026161,1767037278184,-2572.89939848,0.00042788,30]
[400026162,1767037278209,-229.16397952,0.00042788,30]
[400026163,1767037278238,-655.13464508,0.00042788,30]
[400026164,1767037278263,-1630.44614338,0.00042788,30]
[400026165,1767037278287,-1121.62357956,0.00042788,30]
[400026166,1767037278311,-2537.17069268,0.00042788,30]
[400026167,1767037278337,-365.59417602,0.00042788,30]
[400026168,1767037278363,-220.64482422,0.00042788,30]
[400026169,1767037278388,-218.66239022,0.00042788,30]
[400026170,1767037278413,-284.16809153,0.00042788,30]
[400026171,1767037278437,-252.14423397,0.00042788,30]
[400026172,1767037278466,-300.17946273,0.00042788,30]
[400026173,1767037278490,-2419.29497647,0.00042788,30]
[400026174,1767037278514,-171.5816045,0.00042788,30]
[400026175,1767037278539,-301.61643751,0.00042788,30]
[400026176,1767037278564,-508.82078589,0.00042788,30]
[400026177,1767037278588,-277.4422982,0.00042788,30]
[400026178,1767037278613,-2613.08660155,0.00042788,30]
[400026179,1767037278639,-367.95907484,0.00042788,30]
[400026180,1767037278663,-221.84279544,0.00042788,30]
[400026181,1767037278687,-283.16092369,0.00042788,30]
[400026182,1767037278715,-216.08713951,0.00042788,31]
[400026183,1767037278744,-207.3833086,0.00042788,30]
[400026184,1767037278771,-5000.0,0.00042788,30]
[400026185,1767037278796,-211.09766178,0.00042788,30]
[400026186,1767037278820,-336.08126373,0.00042788,30]
[400026187,1767037278846,-179.32771868,0.00042788,30]
[400026188,1767037278871,-1180.9932066,0.00042788,30]
[400026189,1767037278897,-411649.52361716,0.00042788,30]
[400026190,1767037278927,-1298.66860712,0.00042788,30]
[400026191,1767037278951,-1196.34411079,0.00042788,30]
[400026192,1767037278979,-922.34119168,0.00042788,30]
[400026193,1767037279005,-177.33452946,0.00042788,30]
[400026194,1767037279032,-100000.0,0.00042788,30]
[400026195,1767037279059,-3790.79251999,0.00042788,30]
[400026196,1767037279084,-2945.05694221,0.00042788,30]
[400026197,1767037279110,-50000.0,0.00042788,30]
[400026198,1767037279136,-50000.0,0.00042788,31]
[400026199,1767037279161,-50000.0,0.00042788,32]
[400026200,1767037279189,-50000.0,0.00042788,33]
[400026201,1767037279215,-50000.0,0.00042788,34]
[400026202,1767037279241,-50000.0,0.00042788,35]
[400026203,1767037279267,-50000.0,0.00042788,36]
[400026204,1767037279293,-50000.0,0.00042788,37]
[400026205,1767037279319,-50000.0,0.00042788,38]
[400026206,1767037279344,-50000.0,0.00042788,39]
[400026207,1767037279372,-267.51738568,0.00042788,33]
[400026208,1767037279396,-1000.0,0.00042788,30]
[400026209,1767037279421,-3000.0,0.00042788,30]
[400026210,1767037279447,-301.0,0.00042788,30]
[400026211,1767037279473,-545.01400412,0.00042788,30]
[400026212,1767037279497,-160.36166577,0.00042788,30]
[400026213,1767037279522,-9129.13960022,0.00042788,30]
[400026214,1767037279546,-7826.12219799,0.00042788,30]
[400026215,1767037279570,-7344.1329013,0.00042788,30]
[400026216,1767037279593,-1310.87369466,0.00042788,30]
[400026217,1767037279629,-2750.78647993,0.00042788,30]
[400026218,1767037279656,-396.02880908,0.00042788,30]
[400026219,1767037279680,-54417.3222,0.00042788,30]
[400026220,1767037279705,-800.0,0.00042788,30]
[400026221,1767037279730,-1208.51368781,0.00042788,30]
[400026222,1767037279755,-50000.0,0.00042788,30]
[400026223,1767037279781,-366.52497346,0.00042788,30]
[400026224,1767037279808,-101890.39143748,0.00042788,30]
[400026225,1767037279834,-129228.14881175,0.00042788,30]
[400026226,1767037279860,-95426.92803072,0.00042788,30]
[400026227,1767037279885,-18657.93485529,0.00042788,30]
[400026228,1767037279910,-160.0,0.00042788,30]
[400026229,1767037279934,-160.0,0.00042788,30]
[400026230,1767037279959,-160.0,0.00042788,30]
[400026231,1767037279988,-160.0,0.00042788,30]
[400026232,1767037280015,-266.4,0.00042788,30]
[400026233,1767037280043,-160.0,0.00042788,30]
[400026234,1767037280068,-160.0,0.00042788,30]
[400026235,1767037280094,-160.0,0.00042788,30]
[400026236,1767037280119,-160.0,0.00042788,30]
[400026237,1767037280144,-266.4,0.00042788,30]
[400026238,1767037280169,-7000.0,0.00042788,30]
[400026239,1767037280193,-211.44,0.00042788,30]
[400026240,1767037280219,-5000.0,0.00042788,30]
[400026241,1767037280243,-5000.0,0.00042788,30]
[400026242,1767037280271,-5000.0,0.00042788,30]
[400026243,1767037280297,-5000.0,0.00042788,30]
[400026244,1767037280322,-5000.0,0.00042788,30]
[400026245,1767037280348,-5000.0,0.00042788,30]
[400026246,1767037280587,-5000.0,0.00042788,30]
[400026247,1767037280618,-5000.0,0.00042788,30]
[400026248,1767037280645,-5000.0,0.00042788,30]
[400026249,1767037280670,-5000.0,0.00042788,30]
[400026250,1767037280694,-5000.0,0.00042788,30]
[400026251,1767037280720,-5000.0,0.00042788,30]
[400026252,1767037280746,-5000.0,0.00042788,30]
[400026253,1767037280772,-5000.0,0.00042788,30]
[400026254,1767037280798,-5000.0,0.00042788,30]
[400026255,1767037280822,-5000.0,0.00042788,30]
[400026256,1767037280850,-3409.0,0.00042788,30]
[400026257,1767037280875,-5000.0,0.00042788,120]
[400026258,1767037280900,-5000.0,0.00042788,120]
[400026259,1767037280926,-5000.0,0.00042788,120]
[400026260,1767037280951,-5000.0,0.00042788,120]
[400026261,1767037280979,-5000.0,0.00042788,120]
[400026262,1767037281005,-5000.0,0.00042788,120]
[400026263,1767037281031,-5000.0,0.00042788,120]
[400026264,1767037281056,-5000.0,0.00042788,120]
[400026265,1767037281083,-5000.0,0.00042788,120]
[400026266,1767037281108,-5000.0,0.00042788,120]
[400026267,1767037281132,-5000.0,0.00042788,120]
[400026268,1767037281156,-5000.0,0.00042788,120]
[400026269,1767037281181,-5000.0,0.00042788,120]
[400026270,1767037281207,-5000.0,0.00042788,120]
[400026271,1767037281232,-5000.0,0.00042788,120]
[400026272,1767037281258,-5000.0,0.00042788,120]
[400026273,1767037281282,-3409.0,0.00042788,120]
[400026274,1767037281307,-151.02,0.00042788,120]
[400026275,1767037281330,-150.02,0.00042788,120]
[400026276,1767037281354,-150.02,0.00042788,120]
[400026277,1767037281379,-150.02,0.00042788,120]
[400026278,1767037281404,-150.02,0.00042788,120]
[400026279,1767037281430,-150.02,0.00042788,120]
[400026280,1767037281455,-150.02,0.00042788,120]
[400026281,1767037281479,-150.02,0.00042788,120]
[400026282,1767037281504,-150.02,0.00042788,120]
[400026283,1767037281529,-5000.0,0.00042788,30]
[400026284,1767037281568,-1000.0,0.00042788,30]
[400026285,1767037281592,-5000.0,0.00042788,120]
[400026286,1767037281618,-1000.0,0.00042788,120]
[400026287,1767037281644,-150.02,0.00042788,120]
[400026288,1767037281669,-150.02,0.00042788,120]
[400026289,1767037281695,-930.78823338,0.00042788,120]
[400026290,1767037281721,-689.22434117,0.00042788,120]
[400026291,1767037281746,-1415.0,0.00042788,120]
[400026292,1767037281772,-150.02,0.00042788,120]
[400026293,1767037281797,-4508.0,0.00042788,30]
[400026294,1767037281821,-4508.0,0.00042788,120]
[400026295,1767037281845,-150.02,0.00042788,120]
[400026296,1767037281869,-150.02,0.00042788,120]
[400026297,1767037281896,-5000.0,0.00042788,30]
[400026298,1767037281921,-5000.0,0.00042788,30]
[400026299,1767037281951,-5000.0,0.00042788,30]
[400026300,1767037281980,-5000.0,0.00042788,30]
[400026301,1767037282005,-1280.0,0.00042788,30]
[400026302,1767037282031,-5000.0,0.00042788,120]
[400026303,1767037282057,-150.02,0.00042788,120]
[400026304,1767037282084,-5000.0,0.00042788,120]
[400026305,1767037282109,-5000.0,0.00042788,120]
[400026306,1767037282133,-5000.0,0.00042788,120]
[400026307,1767037282158,-1280.0,0.00042788,120]
[400026308,1767037282182,-150.02,0.00042788,120]
[400026309,1767037282207,-150.02,0.00042788,120]
[400026310,1767037282232,-294.02,0.00042788,120]
[400026311,1767037282256,-150.02,0.00042788,120]
[400026312,1767037282281,-150.02,0.00042788,120]
[400026313,1767037282306,-150.02,0.00042788,120]
[400026314,1767037282332,-150.02,0.00042788,120]
[400026315,1767037282357,-150.02,0.00042788,120]
[400026316,1767037282386,-150.02,0.00042788,120]
[400026317,1767037282412,-150.01,0.00042788,120]
[400026318,1767037282437,-150.02,0.00042788,120]
[400026319,1767037282464,-150.02,0.00042788,120]
[400026320,1767037282488,-150.02,0.00042788,120]
[400026321,1767037282514,-150.02,0.00042788,120]
[400026322,1767037282538,-150.02,0.00042788,120]
[400026323,1767037282564,-150.02,0.00042788,120]
[400026324,1767037282590,-150.02,0.00042788,120]
[400026325,1767037282620,-150.02,0.00042788,120]
[400026326,1767037282645,-150.02,0.00042788,120]
[400026327,1767037282671,-150.02,0.00042788,120]
[400026328,1767037282696,-1108.1112673,0.00042788,120]
[400026329,1767037282722,-150.02,0.00042788,120]
[400026330,1767037282747,-930.0,0.00042788,120]
[400026331,1767037282773,-1623.85059627,0.00042788,60]
[400026332,1767037282799,-750.0,0.00042788,120]
[400026333,1767037282827,-150.02,0.00042788,120]
[400026334,1767037282852,-150.02,0.00042788,120]
[400026335,1767037282878,-150.02,0.00042788,120]
[400026336,1767037282906,-833.0,0.00042788,120]
[400026337,1767037282931,-150.02,0.00042788,120]
[400026338,1767037282958,-150.02,0.00042788,120]
[400026339,1767037282989,-150.02,0.00042788,120]
[400026340,1767037283219,-150.02,0.00042788,120]
[400026341,1767037283247,-150.02,0.00042788,120]
[400026342,1767037283272,-150.02,0.00042788,120]
[400026343,1767037283298,-150.02,0.00042788,120]
[400026344,1767037283325,-150.02,0.00042788,120]
[400026345,1767037283352,-150.02,0.00042788,120]
[400026346,1767037283378,-150.02,0.00042788,120]
[400026347,1767037283406,-150.02,0.00042788,120]
[400026348,1767037283433,-150.02,0.00042788,120]
[400026349,1767037283460,-150.02,0.00042788,120]
[400026350,1767037283486,-150.02,0.00042788,120]
[400026351,1767037283512,-150.02,0.00042788,120]
[400026352,1767037283539,-150.02,0.00042788,120]
[400026353,1767037283567,-150.02,0.00042788,120]
[400026354,1767037283593,-150.02,0.00042788,120]
[400026355,1767037283621,-150.02,0.00042788,120]
[400026356,1767037283657,-319.68821,0.00042788,60]
[400026357,1767037283689,-309.34086,0.00042788,60]
[400026358,1767037283717,-319.68821,0.00042788,60]
[400026359,1767037283746,-150.02,0.00042788,120]
[400026360,1767037283774,-309.34086,0.00042788,60]
[400026361,1767037283801,-319.68821,0.00042788,60]
[400026362,1767037283827,-309.34086,0.00042788,60]
[400026363,1767037283856,-319.68821,0.00042788,60]
[400026364,1767037283885,-309.34086,0.00042788,60]
[400026365,1767037283914,-319.68821,0.00042788,60]
[400026366,1767037283941,-309.34086,0.00042788,60]
[400026367,1767037283971,-150.02,0.00042788,120]
[400026368,1767037283998,-150.02,0.00042788,120]
[400026369,1767037284026,-150.02,0.00042788,120]
[400026370,1767037284053,-150.02,0.00042788,120]
[400026371,1767037284080,-150.02,0.00042788,120]
[400026372,1767037284111,-150.02,0.00042788,120]
[400026373,1767037284139,-150.02,0.00042788,120]
[400026374,1767037284165,-150.02,0.00042788,120]
[400026375,1767037284192,-150.02,0.00042788,120]
[400026376,1767037284218,-150.02,0.00042788,120]
[400026377,1767037284243,-150.02,0.00042788,120]
[400026378,1767037284270,-150.02,0.00042788,120]
[400026379,1767037284297,-150.02,0.00042788,120]
[400026380,1767037284323,-150.02,0.00042788,120]
[400026381,1767037284348,-150.02,0.00042788,120]
[400026382,1767037284374,-150.02,0.00042788,120]
[400026383,1767037284400,-150.02,0.00042788,120]
[400026384,1767037284424,-150.02,0.00042788,120]
[400026385,1767037284449,-150.02,0.00042788,120]
[400026386,1767037284474,-150.02,0.00042788,120]
[400026387,1767037284500,-150.02,0.00042788,120]
[400026388,1767037284526,-150.02,0.00042788,120]
[400026389,1767037284551,-150.02,0.00042788,120]
[400026390,1767037284578,-150.02,0.00042788,120]
[400026391,1767037284603,-150.02,0.00042788,120]
[400026392,1767037284628,-150.02,0.00042788,120]
[400026393,1767037284656,-150.02,0.00042788,120]
[400026394,1767037284683,-150.02,0.00042788,120]
[400026395,1767037284709,-150.02,0.00042788,120]
[400026396,1767037284735,-150.02,0.00042788,120]
[400026397,1767037284761,-150.02,0.00042788,120]
[400026398,1767037284786,-150.02,0.00042788,120]
[400026399,1767037284811,-150.02,0.00042788,120]
[400026400,1767037284838,-150.02,0.00042788,120]
[400026401,1767037284863,-150.02,0.00042788,120]
[400026402,1767037284890,-150.02,0.00042788,120]
[400026403,1767037284916,-150.02,0.00042788,120]
[400026404,1767037284940,-150.02,0.00042788,120]
[400026405,1767037284967,-150.02,0.00042788,120]
[400026406,1767037284994,-150.02,0.00042788,120]
[400026407,1767037285021,-150.02,0.00042788,120]
[400026408,1767037285048,-150.02,0.00042788,120]
[400026409,1767037285074,-150.02,0.00042788,120]
[400026410,1767037285098,-150.02,0.00042788,120]
[400026411,1767037285122,-150.02,0.00042788,120]
[400026412,1767037285146,-150.02,0.00042788,120]
[400026413,1767037285171,-150.02,0.00042788,120]
[400026414,1767037285194,-150.02,0.00042788,120]
[400026415,1767037285218,-150.02,0.00042788,120]
[400026416,1767037285242,-150.02,0.00042788,120]
[400026417,1767037285266,-150.02,0.00042788,120]
[400026418,1767037285291,-150.02,0.00042788,120]
[400026419,1767037285315,-150.02,0.00042788,120]
[400026420,1767037285340,-150.02,0.00042788,120]
[400026421,1767037285367,-150.02,0.00042788,120]
[400026422,1767037285393,-150.02,0.00042788,120]
[400026423,1767037285418,-150.02,0.00042788,120]
[400026424,1767037285443,-150.02,0.00042788,120]
[400026425,1767037285469,-150.02,0.00042788,120]
[400026426,1767037285495,-150.02,0.00042788,120]
[400026427,1767037285519,-150.02,0.00042788,120]
[400026428,1767037285546,-150.02,0.00042788,120]
[400026429,1767037285572,-150.02,0.00042788,120]
[400026430,1767037285599,-150.02,0.00042788,120]
[400026431,1767037285623,-150.02,0.00042788,120]
[400026432,1767037285648,-150.02,0.00042788,120]
[400026433,1767037285674,-150.02,0.00042788,120]
[400026434,1767037285701,-150.02,0.00042788,120]
[400026435,1767037285734,-150.02,0.00042788,120]
[400026436,1767037285759,-150.02,0.00042788,120]
[400026437,1767037285783,-150.02,0.00042788,120]
[400026438,1767037285808,-150.02,0.00042788,120]
[400026439,1767037285833,-150.02,0.00042788,120]
[400026440,1767037285858,-150.02,0.00042788,120]
[400026441,1767037285883,-150.02,0.00042788,120]
[400026442,1767037285909,-150.02,0.00042788,120]
[400026443,1767037285935,-150.02,0.00042788,120]
[400026444,1767037285961,-150.02,0.00042788,120]
[400026445,1767037285989,-150.02,0.00042788,120]
[400026446,1767037286012,-150.02,0.00042788,120]
[400026447,1767037286040,-150.02,0.00042788,120]
[400026448,1767037286067,-150.02,0.00042788,120]
[400026449,1767037286092,-150.02,0.00042788,120]
[400026450,1767037286118,-291.02,0.00042788,120]
[400026451,1767037286143,-307.9294555,0.00042788,120]
[400026452,1767037286167,-430.0,0.00042788,120]
[400026453,1767037286194,-1583.50677,0.00042788,120]
[400026454,1767037286219,-475.16724415,0.00042788,120]
[400026455,1767037286244,-999.999996,0.00042788,120]
[400026456,1767037286270,-1460.67311913,0.00042788,120]
[400026457,1767037286296,-361.30781502,0.00042788,91]
[400026458,1767037286321,-682.04319136,0.00042788,60]
[400026459,1767037286345,-217.05123637,0.00042788,120]
[400026460,1767037286370,-954.17157443,0.00042788,120]
[400026461,1767037286396,-692.99242585,0.00042788,120]
[400026462,1767037286420,-1546.32939139,0.00042788,120]
[400026463,1767037286445,-315.23920695,0.00042788,120]
[400026464,1767037286470,-1880.8760476,0.00042788,120]
[400026465,1767037286495,-651.73389033,0.00042788,120]
[400026466,1767037286524,-561.73057084,0.00042788,120]
[400026467,1767037286556,-178.58005773,0.00042788,120]
[400026468,1767037286588,-616.91026728,0.00042788,120]
[400026469,1767037286617,-750.6817191,0.00042788,120]
[400026470,1767037286644,-917.73199522,0.00042788,120]
[400026471,1767037286671,-430.26378099,0.00042788,120]
[400026472,1767037286701,-427.30467053,0.00042788,90]
[400026473,1767037286731,-1308.86845956,0.00042788,120]
[400026474,1767037286761,-2499.00974538,0.00042788,120]
[400026475,1767037286791,-196.93568409,0.00042788,120]
[400026476,1767037286820,-628.77500445,0.00042788,120]
[400026477,1767037286849,-1121.57276049,0.00042788,120]
[400026478,1767037286879,-175.82793618,0.00042788,60]
[400026479,1767037286914,-599.38005752,0.00042788,120]
[400026480,1767037286946,-201.87109776,0.00042788,120]
[400026481,1767037286976,-225.12516766,0.00042788,60]
[400026482,1767037287004,-192.29381467,0.00042788,120]
[400026483,1767037287032,-1144.6535506,0.00042788,120]
[400026484,1767037287061,-1513.57796808,0.00042788,120]
[400026485,1767037287088,-498.57702379,0.00042788,120]
[400026486,1767037287117,-763.70686349,0.00042788,120]
[400026487,1767037287145,-440.21485661,0.00042788,120]
[400026488,1767037287172,-463.824407,0.00042788,75]
[400026489,1767037287200,-1739.88251444,0.00042788,120]
[400026490,1767037287228,-293.21219236,0.00042788,120]
[400026491,1767037287255,-609.26530887,0.00042788,120]
[400026492,1767037287282,-592.75759648,0.00042788,120]
[400026493,1767037287310,-1014.81656135,0.00042788,120]
[400026494,1767037287337,-1319.10081213,0.00042788,120]
[400026495,1767037287365,-222.76467138,0.00042788,120]
[400026496,1767037287393,-279.89887425,0.00042788,120]
[400026497,1767037287419,-893.54718898,0.00042788,120]
[400026498,1767037287447,-324.97946618,0.00042788,120]
[400026499,1767037287475,-269.76947665,0.00042788,120]
[400026500,1767037287504,-290.01196018,0.00042788,120]
[400026501,1767037287532,-919.55027096,0.00042788,120]
[400026502,1767037287560,-1651.55571578,0.00042788,120]
[400026503,1767037287588,-264.2221116,0.00042788,120]
[400026504,1767037287616,-1057.41702896,0.00042788,120]
[400026505,1767037287645,-413.3675419,0.00042788,120]
[400026506,1767037287671,-736.03494977,0.00042788,120]
[400026507,1767037287700,-585.76036825,0.00042788,120]
[400026508,1767037287729,-1057.91878404,0.00042788,120]
[400026509,1767037287757,-1083.79348791,0.00042788,120]
[400026510,1767037287788,-598.76027568,0.00042788,120]
[400026511,1767037287818,-266.89746411,0.00042788,120]
[400026512,1767037287845,-2010.25449115,0.00042788,120]
[400026513,1767037287873,-1274.31203732,0.00042788,120]
[400026514,1767037287900,-167.03771145,0.00042788,120]
[400026515,1767037287929,-276.01076136,0.00042788,120]
[400026516,1767037287957,-313.08503853,0.00042788,120]
[400026517,1767037287986,-199.94992225,0.00042788,120]
[400026518,1767037288013,-3172.12580239,0.00042788,120]
[400026519,1767037288043,-766.2665388,0.00042788,120]
[400026520,1767037288070,-1364.88373202,0.00042788,120]
[400026521,1767037288099,-1114.83927827,0.00042788,120]
[400026522,1767037288570,-2947.69746728,0.00042788,120]
[400026523,1767037288595,-572.09307125,0.00042788,90]
[400026524,1767037288620,-1447.9815507,0.00042788,120]
[400026525,1767037288645,-1061.70833091,0.00042788,120]
[400026526,1767037288670,-1077.48644711,0.00042788,120]
[400026527,1767037288696,-671.52783702,0.00042788,120]
[400026528,1767037288725,-180.357221,0.00042788,120]
[400026529,1767037288752,-2076.45757123,0.00042788,120]
[400026530,1767037288777,-550.05934209,0.00042788,120]
[400026531,1767037288804,-654.72131456,0.00042788,120]
[400026532,1767037288829,-1059.62880865,0.00042788,120]
[400026533,1767037288854,-724.53268544,0.00042788,120]
[400026534,1767037288879,-1112.40449959,0.00042788,120]
[400026535,1767037288903,-709.21977031,0.00042788,120]
[400026536,1767037288928,-507.04545083,0.00042788,120]
[400026537,1767037288952,-840.68691364,0.00042788,120]
[400026538,1767037288978,-196.4724626,0.00042788,120]
[400026539,1767037289004,-1145.79641644,0.00042788,120]
[400026540,1767037289031,-307.2270946,0.00042788,120]
[400026541,1767037289056,-183.72966187,0.00042788,120]
[400026542,1767037289080,-500.68682087,0.00042788,120]
[400026543,1767037289103,-274.12192974,0.00042788,120]
[400026544,1767037289127,-1796.18722754,0.00042788,120]
[400026545,1767037289151,-860.23635121,0.00042788,120]
[400026546,1767037289174,-332.07364318,0.00042788,120]
[400026547,1767037289198,-295.12741876,0.00042788,120]
[400026548,1767037289224,-1795.45168273,0.00042788,90]
[400026549,1767037289249,-2213.42821648,0.00042788,120]
[400026550,1767037289272,-1059.66328965,0.00042788,120]
[400026551,1767037289296,-536.61851446,0.00042788,120]
[400026552,1767037289320,-3224.96462361,0.00042788,120]
[400026553,1767037289343,-41243.0,0.00042788,30]
[400026554,1767037289368,-2559.06,0.00042788,120]
[400026555,1767037289394,-1016.28218294,0.00042788,120]
[400026556,1767037289419,-307087.24436291,0.00042788,30]
[400026557,1767037289445,-100000.0,0.00042788,90]
[400026558,1767037289472,-100000.0,0.00042788,90]
[400026559,1767037289497,-100000.0,0.00042788,120]
[400026560,1767037289524,-100000.0,0.00042788,120]
[400026561,1767037289549,-111140.0,0.00042788,120]
[400026562,1767037289574,-3237680.49860601,0.00042788,30]
[400026563,1767037293896,-3818616.6369178,0.00042788,30]
[400026564,1767037293921,-1000.0,0.00042788,60]
[400026565,1767037293947,-1000.0,0.00042788,90]
[400026566,1767037293976,-1000.0,0.00042788,120]
[400026567,1767037294004,-823.21053483,0.00042788,120]
[400026568,1767037294033,-2177560.15254737,0.00042788,30]
[400026569,1767037299250,-424489.41402264,0.00042788,30]
[400026570,1767037299278,-477.431103,0.00042788,120]
[400026571,1767037299307,-371.0,0.00042788,30]
[400026572,1767037299333,-214.0,0.00042788,120]
[400026573,1767037299361,-719.60751077,0.00042788,120]
[400026574,1767037299388,-5000.0,0.00042788,90]
[400026575,1767037299447,-372.0,0.00042788,120]
[400026576,1767037299474,-1500.0,0.00042788,120]
[400026577,1767037299504,-5000.0,0.00042788,36]
[400026578,1767037299529,-1377.00050499,0.00042788,60]
[400026579,1767037299556,-183.31677648,0.00042788,120]
[400026580,1767037299584,-154.57139431,0.00042788,120]
[400026581,1767037299612,-154.5713943,0.00042788,120]
[400026582,1767037299639,-6580.98599726,0.00042788,30]
[400026583,1767037299671,-569.85300414,0.00042788,120]
[400026584,1767037299702,-2113.43392352,0.00042788,120]
[400026585,1767037299732,-1000.0,0.00042788,120]
[400026586,1767037299759,-1000.0,0.00042788,120]
[400026587,1767037299787,-536.59543422,0.00042788,120]
[400026588,1767037299813,-500.0,0.00042788,120]
[400026595,1767037337532,-150.0,0.00033313,60]
[400026596,1767037337559,-150.0,0.00033313,60]
[400026597,1767037337585,-150.0,0.00033313,60]
[400026598,1767037337611,-150.0,0.0003334,60]
[400026599,1767037337637,-200.0,0.00033368,60]
[400026600,1767037337665,-164.56,0.00033587,120]
[400026601,1767037337967,-166.66,0.00036149,30]
[400026602,1767037337996,-150.0,0.00036712,31]
[400026603,1767037338022,-150.0,0.00036712,31]
[400026604,1767037338047,-150.0,0.00036712,31]
[400026605,1767037338073,-500.0,0.00036712,31]
[400026606,1767037338099,-150.0,0.00036712,31]
[400026607,1767037338124,-150.0,0.00036712,31]
[400026608,1767037338150,-150.0,0.00036739,31]
[400026609,1767037338175,-150.0,0.00036739,31]
[400026610,1767037338201,-504.56733337,0.00036739,31]
[400026611,1767037338230,-150.0,0.00036739,31]